fUSD/lending_fUSD_20260702
["ID","MTS","AMOUNT","RATE_DAILY","PERIOD"]
[426902795,1783000173000,-626.16931565,0.00014999,2]
[426902798,1783000173000,-500.0,0.00014999,2]
[426902799,1783000173000,-500.0,0.00014999,2]
[426902801,1783000173000,-500.0,0.00014999,2]
[426902803,1783000173000,-362.0915011,0.00014999,2]
[426902805,1783000173000,-500.0,0.00014999,2]
[426902806,1783000173000,-500.0,0.00014999,2]
[426902804,1783000173000,-470.54546076,0.00014999,2]
[426902807,1783000173000,-500.0,0.00014999,2]
[426902810,1783000173000,-320.47422441,0.00014999,2]
[426902808,1783000173000,-500.0,0.00014999,2]
[426902809,1783000173000,-500.0,0.00014999,2]
[426902802,1783000173000,-9.56463979,0.00014999,2]
[426902811,1783000197000,-150.0,0.00014549,2]
[426902813,1783000197000,-500.0,0.00014999,2]
[426902812,1783000197000,-500.0,0.00014999,2]
[426902814,1783000197000,-500.0,0.00014999,2]
[426902818,1783000197000,-500.0,0.00014999,2]
[426902815,1783000197000,-500.0,0.00014999,2]
[426902817,1783000197000,-500.0,0.00014999,2]
[426902819,1783000197000,-222.29785745,0.00014999,2]
[426902820,1783000197000,-277.70214255,0.00014999,2]
[426902816,1783000197000,-500.0,0.00014999,2]
[426902824,1783000198000,-297.39775342,0.00014999,2]
[426902821,1783000198000,-500.0,0.00014999,2]
[426902822,1783000198000,-500.0,0.00014999,2]
[426902826,1783000198000,-500.0,0.00014999,2]
[426902823,1783000198000,-500.0,0.00014999,2]
[426902827,1783000198000,-500.0,0.00014999,2]
[426902829,1783000198000,-202.80203852,0.00014999,2]
[426902828,1783000198000,-297.19796148,0.00014999,2]
[426902830,1783000198000,-40.69617867,0.00014999,2]
[426902825,1783000198000,-500.0,0.00014999,2]
[426902847,1783000231000,-8040.15868163,0.00015,2]
[426902844,1783000231000,-474.20734469,0.00015,2]
[426902845,1783000231000,-1281.93,0.00015,2]
[426902846,1783000231000,-119991.13676215,0.00015,2]
[426902850,1783000231000,-268.95559825,0.00015,2]
[426902849,1783000231000,-55606.97607025,0.00015,2]
[426902851,1783000231000,-18449.08661251,0.00015,2]
[426902852,1783000231000,-1005.3639732,0.00015,2]
[426902853,1783000231000,-2612.0,0.00015,2]
[426902854,1783000231000,-3989.36420501,0.00015,2]
[426902855,1783000231000,-556.02436834,0.00015,2]
[426902848,1783000231000,-8129.08084318,0.00015,2]
[426902893,1783000238000,-2087.0162555,0.00015,2]
[426902889,1783000238000,-48829.746,0.00015,2]
[426902892,1783000238000,-121462.97724365,0.00015,2]
[426902891,1783000238000,-36008.590824,0.00015,2]
[426902888,1783000238000,-3681.83808517,0.00015,2]
[426902887,1783000238000,-12981.10425085,0.00015,2]
[426902886,1783000238000,-9197.67304711,0.00015,2]
[426902890,1783000238000,-8355.461751,0.00015,2]
[426902894,1783000238000,-8123.68051833,0.00015,2]
[426902896,1783000238000,-672266.31201392,0.00015,2]
[426902900,1783000238000,-1339.87385273,0.00017329,2]
[426902903,1783000238000,-8082.69199538,0.000179,2]
[426902898,1783000238000,-17697.86995101,0.00016211,2]
[426902904,1783000238000,-17697.86995101,0.00018833,2]
[426902907,1783000238000,-5245.95,0.00019339,2]
[426902905,1783000238000,-755.77743304,0.00019,2]
[426902906,1783000238000,-23670.24,0.00019339,2]
[426902909,1783000238000,-4982.85,0.00019339,2]
[426902899,1783000238000,-183.74,0.00016577,2]
[426902901,1783000238000,-17697.86995101,0.00017522,2]
[426902908,1783000238000,-1352.2,0.00019339,2]
[426902936,1783000239000,-500.0,0.00022285,2]
[426902952,1783000239000,-3717.41,0.00023253,2]
[426902937,1783000239000,-8082.69199535,0.0002257,2]
[426902949,1783000239000,-1162.77,0.00023148,2]
[426902951,1783000239000,-517.16,0.00023252,2]
[426902943,1783000239000,-1271.41176103,0.00023,2]
[426902941,1783000239000,-17697.86995101,0.00022767,2]
[426902953,1783000239000,-200.0,0.00023279,2]
[426902939,1783000239000,-1162.77,0.00022584,2]
[426902957,1783000239000,-166.91,0.00023977,2]
[426902947,1783000239000,-1198.37,0.00023115,7]
[426902955,1783000239000,-1271.41176103,0.00023667,2]
[426902956,1783000239000,-1162.77,0.00023713,2]
[426902928,1783000239000,-3186.08,0.00021711,2]
[426902954,1783000239000,-1271.41176103,0.00023333,2]
[426902958,1783000239000,-1000.0,0.00023989,2]
[426902960,1783000239000,-156.0,0.00024,2]
[426902961,1783000239000,-156.0,0.00024,2]
[426902959,1783000239000,-161.0,0.00024,2]
[426902963,1783000239000,-158.0,0.00024,2]
[426902962,1783000239000,-153.0,0.00024,2]
[426902945,1783000239000,-150.0,0.00023087,2]
[426902933,1783000239000,-160.0,0.00021972,2]
[426902931,1783000239000,-600.0,0.00021918,8]
[426902935,1783000239000,-1339.87385273,0.00022186,2]
[426902964,1783000239000,-192.0,0.00024,2]
[426902910,1783000239000,-150.99,0.00019339,2]
[426902911,1783000239000,-4457.33,0.00019339,2]
[426902912,1783000239000,-8082.69199535,0.00019457,2]
[426902914,1783000239000,-1339.87385273,0.00019757,2]
[426902915,1783000239000,-250.0,0.00019819,2]
[426902913,1783000239000,-244.63160435,0.00019544,2]
[426902916,1783000239000,-5030.23750186,0.000199,3]
[426902926,1783000239000,-17697.86995101,0.00021456,2]
[426902917,1783000239000,-574.0,0.0002,2]
[426902934,1783000239000,-697.33,0.00022,2]
[426902918,1783000239000,-1220.87,0.0002,2]
[426902920,1783000239000,-1000.0,0.00020229,2]
[426902921,1783000239000,-1852.42,0.00020288,2]
[426902924,1783000239000,-8082.69199535,0.00021013,2]
[426902922,1783000239000,-200.0,0.00020357,2]
[426902923,1783000239000,-1719.07923613,0.00021,2]
[426902925,1783000239000,-80974.89,0.00021266,2]
[426902929,1783000239000,-500.0,0.00021818,2]
[426902932,1783000239000,-600.0,0.00021918,2]
[426902927,1783000239000,-1208.26,0.00021558,2]
[426902930,1783000239000,-5000.0,0.00021918,2]
[426902919,1783000239000,-17697.86995101,0.00020144,2]
[426902965,1783000239000,-1271.41176103,0.00024,2]
[426902938,1783000239000,-845.88094443,0.00022574,2]
[426902969,1783000239000,-5051.37,0.00024174,2]
[426902992,1783000239000,-668.16,0.00025,2]
[426903000,1783000239000,-4098.73,0.00025,2]
[426902997,1783000239000,-1300.29,0.00025,2]
[426903001,1783000239000,-1756.03,0.00025,2]
[426903006,1783000239000,-361.1,0.00025,2]
[426902998,1783000239000,-556.69,0.00025,2]
[426903008,1783000239000,-156.0,0.00025,2]
[426903005,1783000239000,-542.15,0.00025,2]
[426902999,1783000239000,-370.8,0.00025,2]
[426903004,1783000239000,-1266.35,0.00025,2]
[426902995,1783000239000,-190.19,0.00025,2]
[426903003,1783000239000,-1170.35,0.00025,2]
[426903010,1783000239000,-166.0,0.00025,2]
[426903015,1783000239000,-265.419946,0.00025284,14]
[426903013,1783000239000,-1271.41176103,0.00025,2]
[426903011,1783000239000,-352.83336025,0.00025,3]
[426903012,1783000239000,-192.0,0.00025,2]
[426903009,1783000239000,-153.0,0.00025,2]
[426903014,1783000239000,-159.0,0.00025,2]
[426903016,1783000239000,-220.83058827,0.00025296,30]
[426903017,1783000239000,-166.91,0.00025296,2]
[426903018,1783000239000,-171.89,0.00025305,2]
[426902966,1783000239000,-153.0,0.00024,2]
[426902986,1783000239000,-207.87204415,0.000249,2]
[426903007,1783000239000,-156.0,0.00025,2]
[426902987,1783000239000,-152.84390127,0.000249,2]
[426902989,1783000239000,-152.9734817,0.000249,2]
[426902970,1783000239000,-1071.55,0.00024174,2]
[426902973,1783000239000,-1996.67,0.000242,2]
[426902968,1783000239000,-8082.69199535,0.00024127,2]
[426902967,1783000239000,-17697.86995101,0.00024078,2]
[426902971,1783000239000,-605.92,0.00024174,2]
[426902975,1783000239000,-1162.77,0.00024277,2]
[426902977,1783000239000,-653.73,0.00024523,7]
[426902974,1783000239000,-855.15,0.000242,2]
[426902976,1783000239000,-1271.41176103,0.00024333,2]
[426902983,1783000239000,-150.0,0.0002477,2]
[426902972,1783000239000,-150.7194063,0.00024178,2]
[426902980,1783000239000,-1271.41176103,0.00024667,2]
[426902981,1783000239000,-1183.92,0.00024673,7]
[426902982,1783000239000,-2337.42838096,0.0002471,2]
[426902979,1783000239000,-169.52,0.00024658,2]
[426902984,1783000239000,-1162.77,0.00024842,2]
[426902988,1783000239000,-192.74655837,0.000249,2]
[426902985,1783000239000,-182.60383973,0.00024875,2]
[426902993,1783000239000,-285.78,0.00025,2]
[426902991,1783000239000,-569.76,0.00025,2]
[426902978,1783000239000,-1339.87385273,0.00024614,2]
[426902990,1783000239000,-152.0043367,0.00024967,2]
[426903036,1783000240000,-156.0,0.00026,2]
[426903042,1783000240000,-1271.41176103,0.00026,2]
[426903041,1783000240000,-192.0,0.00026,2]
[426903034,1783000240000,-4619.42255365,0.00026,2]
[426903037,1783000240000,-153.0,0.00026,2]
[426903045,1783000240000,-202.66808137,0.00026153,2]
[426903035,1783000240000,-167.0,0.00026,2]
[426903040,1783000240000,-1978.43445436,0.00026,5]
[426903050,1783000240000,-385.49311674,0.00026153,2]
[426903051,1783000240000,-305.94696341,0.00026153,2]
[426903038,1783000240000,-13833.35636612,0.00026,10]
[426903039,1783000240000,-221.04398295,0.00026,2]
[426903032,1783000240000,-613.71456904,0.0002599,2]
[426903021,1783000240000,-1271.41176103,0.00025667,2]
[426903031,1783000240000,-199.92,0.0002594,2]
[426903028,1783000240000,-1095622.96916663,0.000258,2]
[426903029,1783000240000,-1011.34,0.00025808,2]
[426903030,1783000240000,-201.42,0.00025901,2]
[426903024,1783000240000,-168.33840262,0.00025708,2]
[426903025,1783000240000,-647.64709247,0.00025735,2]
[426903027,1783000240000,-200.0,0.00025769,2]
[426903022,1783000240000,-8082.69199535,0.00025683,2]
[426903026,1783000240000,-2607.96,0.00025748,2]
[426903023,1783000240000,-1989.51908624,0.00025708,2]
[426903019,1783000240000,-1271.41176103,0.00025333,2]
[426903020,1783000240000,-17697.86995101,0.00025389,2]
[426903033,1783000240000,-1137.03976482,0.00026,2]
[426903048,1783000240000,-305.68780254,0.00026153,2]
[426903049,1783000240000,-153.58810765,0.00026153,2]
[426903046,1783000240000,-415.7440883,0.00026153,2]
[426903076,1783000240000,-2950.0,0.000268,2]
[426903075,1783000240000,-1328.71981024,0.000268,2]
[426903074,1783000240000,-500.0,0.000268,2]
[426903073,1783000240000,-11159.06988707,0.000268,2]
[426903072,1783000240000,-1196.69,0.000268,2]
[426903067,1783000240000,-151.0,0.00026797,7]
[426903071,1783000240000,-2801134.21514937,0.000268,2]
[426903070,1783000240000,-288.31300057,0.000268,2]
[426903069,1783000240000,-163.45840102,0.000268,2]
[426903066,1783000240000,-154.9324923,0.00026797,7]
[426903065,1783000240000,-151.0,0.00026797,7]
[426903061,1783000240000,-166.91,0.00026615,2]
[426903064,1783000240000,-150.7194063,0.000267,2]
[426903068,1783000240000,-55491.83004621,0.000268,2]
[426903062,1783000240000,-1000.0,0.000267,9]
[426903043,1783000240000,-177.09737896,0.00026106,2]
[426903052,1783000240000,-865.75,0.00026231,7]
[426903063,1783000240000,-17697.86995101,0.000267,2]
[426903053,1783000240000,-152.0,0.00026358,3]
[426903055,1783000240000,-28083.93966186,0.000264,2]
[426903054,1783000240000,-268.85663972,0.00026397,2]
[426903047,1783000240000,-208.43143396,0.00026153,2]
[426903058,1783000240000,-173.91,0.00026515,2]
[426903057,1783000240000,-1958.29,0.00026446,2]
[426903060,1783000240000,-500.0,0.000266,9]
[426903059,1783000240000,-368.0,0.00026521,2]
[426903056,1783000240000,-185.59,0.000264,7]
[426903044,1783000240000,-220.83058827,0.00026118,30]
[426903121,1783000243000,-2168.21820723,0.000268,2]
[426903115,1783000243000,-235.62227265,0.000268,2]
[426903110,1783000243000,-403.91202118,0.0002679,2]
[426903112,1783000243000,-1787.42302471,0.000268,2]
[426903105,1783000243000,-403.91202118,0.00022757,2]
[426903114,1783000243000,-62026.16693746,0.000268,2]
[426903107,1783000243000,-155.0,0.00024,2]
[426903133,1783000245000,-163.0,0.00025,2]
[426903134,1783000245000,-2132.95378086,0.000268,2]
[426903135,1783000245000,-21512.72998942,0.000268,2]
[426903132,1783000245000,-209.5,0.00024658,2]
[426903141,1783000246000,-2971.85284894,0.000268,2]
[426903139,1783000246000,-3959.33661116,0.000268,2]
[426903142,1783000246000,-2745.0248133,0.000268,2]
[426903140,1783000246000,-3355.96413696,0.000268,2]
[426903137,1783000246000,-2738.51990694,0.000268,2]
[426903138,1783000246000,-30912.87445204,0.000268,2]
[426903136,1783000246000,-3166.92512006,0.000268,2]
[426903148,1783000311000,285.17,0.00029372,120]
[426903149,1783000320000,290.0,0.00012629,2]
[426903151,1783000350000,-150.0,0.00014549,2]
[426903152,1783000350000,-290.0,0.00014619,2]
[426903153,1783000350000,-500.0,0.00014999,2]
[426903150,1783000350000,-202.82439473,0.00013549,2]
[426903155,1783000350000,-500.0,0.00014999,2]
[426903156,1783000350000,-500.0,0.00014999,2]
[426903157,1783000350000,-500.0,0.00014999,2]
[426903158,1783000350000,-500.0,0.00014999,2]
[426903154,1783000350000,-500.0,0.00014999,2]
[426903174,1783000351000,-500.0,0.00014999,2]
[426903173,1783000351000,-500.0,0.00014999,2]
[426903171,1783000351000,-500.0,0.00014999,2]
[426903170,1783000351000,-500.0,0.00014999,2]
[426903169,1783000351000,-500.0,0.00014999,2]
[426903168,1783000351000,-328.64329546,0.00014999,2]
[426903167,1783000351000,-500.0,0.00014999,2]
[426903164,1783000351000,-329.03789559,0.00014999,2]
[426903166,1783000351000,-500.0,0.00014999,2]
[426903172,1783000351000,-500.0,0.00014999,2]
[426903163,1783000351000,-580.27882863,0.00014999,2]
[426903161,1783000351000,-500.0,0.00014999,2]
[426903162,1783000351000,-500.0,0.00014999,2]
[426903160,1783000351000,-500.0,0.00014999,2]
[426903159,1783000351000,-500.0,0.00014999,2]
[426903165,1783000351000,-500.0,0.00014999,2]
[426903175,1783000351000,-500.0,0.00014999,2]
[426903188,1783000351000,-500.0,0.00016438,2]
[426903176,1783000351000,-500.0,0.00014999,2]
[426903193,1783000351000,-189.52643758,0.00024901,2]
[426903191,1783000351000,-259.0,0.00024,2]
[426903192,1783000351000,-697.88,0.00024174,2]
[426903190,1783000351000,-442.24062181,0.00016438,2]
[426903189,1783000351000,-500.0,0.00016438,2]
[426903187,1783000351000,-292.77064223,0.0001535,2]
[426903186,1783000351000,-293.28768166,0.00014999,2]
[426903185,1783000351000,-185.2743637,0.00014999,2]
[426903183,1783000351000,-378.00500821,0.00014999,2]
[426903184,1783000351000,-157.387859,0.00014999,2]
[426903182,1783000351000,-500.0,0.00014999,2]
[426903181,1783000351000,-500.0,0.00014999,2]
[426903179,1783000351000,-500.0,0.00014999,2]
[426903180,1783000351000,-500.0,0.00014999,2]
[426903178,1783000351000,-500.0,0.00014999,2]
[426903177,1783000351000,-500.0,0.00014999,2]
[426903195,1783000352000,-172.70024083,0.00024901,2]
[426903197,1783000352000,-1614.45561326,0.00025904,2]
[426903196,1783000352000,-259.0,0.00025,2]
[426903194,1783000352000,-189.68711731,0.00024901,2]
[426903198,1783000378000,-160.0,0.00015,2]
[426903199,1783000398000,-215.725404,0.00014534,2]
[426903200,1783000401000,-155.0,0.00024,2]
[426903203,1783000425000,-153.0,0.00024,2]
[426903202,1783000425000,-916.0,0.00023933,2]
[426903201,1783000425000,-893.0,0.00023925,2]
[426903204,1783000523000,31508.9253,0.000267,120]
[426903214,1783001107000,150.86,0.00030137,120]
[426903221,1783001269000,303.56,0.00028485,120]
[426903222,1783001344000,2000.0,0.00028484,120]
[426903235,1783001368000,-271.16420461,0.00014999,2]
[426903236,1783001368000,-271.16420461,0.00014999,2]
[426903238,1783001368000,-150.0,0.00014999,2]
[426903239,1783001368000,-646.36,0.00014999,2]
[426903240,1783001368000,-646.36,0.00014999,2]
[426903237,1783001368000,-271.16420461,0.00014999,2]
[426903241,1783001368000,-646.36,0.00014999,2]
[426903242,1783001368000,-646.36,0.00014999,2]
[426903245,1783001369000,-119.76521494,0.00014999,2]
[426903244,1783001369000,-189.98621708,0.00014999,2]
[426903243,1783001369000,-310.01378292,0.00014999,2]
[426903258,1783001433000,-150.0,0.00017494,2]
[426903261,1783001433000,-90358.1314029,0.00017495,2]
[426903263,1783001433000,-7567.1533551,0.00017495,2]
[426903272,1783001433000,-2655.50516318,0.0001994,2]
[426903265,1783001433000,-4717.49321125,0.00017495,2]
[426903266,1783001433000,-5025.2460953,0.00017495,2]
[426903257,1783001433000,-3003.73936715,0.00017494,30]
[426903269,1783001433000,-151.0,0.00018,2]
[426903264,1783001433000,-9259.55380525,0.00017495,2]
[426903271,1783001433000,-558.26,0.00019355,7]
[426903256,1783001433000,-325.72285196,0.00017494,2]
[426903252,1783001433000,-179.68497724,0.00017408,2]
[426903259,1783001433000,-3814.5769346,0.00017495,2]
[426903254,1783001433000,-319.77833425,0.00017494,2]
[426903255,1783001433000,-174.27714804,0.00017494,2]
[426903253,1783001433000,-620.03098096,0.00017494,2]
[426903250,1783001433000,-30964.48504133,0.00016946,2]
[426903251,1783001433000,-155.9931201,0.00017395,2]
[426903247,1783001433000,-250.0,0.00016499,2]
[426903249,1783001433000,-16644.5025298,0.00016946,2]
[426903248,1783001433000,-158976.59099157,0.00016946,2]
[426903267,1783001433000,-183.74,0.000176,2]
[426903260,1783001433000,-10590.2888519,0.00017495,2]
[426903268,1783001433000,-151.0,0.00018,2]
[426903262,1783001433000,-1438.0957964,0.00017495,2]
[426903274,1783001433000,-6078.17141295,0.00020145,2]
[426903270,1783001433000,-163.9,0.00018833,2]
[426903311,1783001433000,-559.27,0.00021939,2]
[426903308,1783001433000,-31626.25728795,0.00021939,2]
[426903306,1783001433000,-280.05030682,0.00021938,2]
[426903285,1783001433000,-303.56,0.00020716,2]
[426903291,1783001433000,-2607.96,0.00021248,2]
[426903304,1783001433000,-500.0,0.00021938,2]
[426903289,1783001433000,-1628.83,0.00020966,2]
[426903287,1783001433000,-1000.0,0.00020845,2]
[426903302,1783001433000,-230.32652691,0.00021938,2]
[426903300,1783001433000,-500.0,0.00021938,2]
[426903298,1783001433000,-205.30137716,0.00021938,2]
[426903313,1783001433000,-980.68160655,0.00021939,2]
[426903293,1783001433000,-500.0,0.0002126,2]
[426903283,1783001433000,-201.42,0.00020567,2]
[426903273,1783001433000,-281.47882285,0.00019999,2]
[426903280,1783001433000,-5245.95,0.00020145,2]
[426903281,1783001433000,-3412.86,0.00020507,2]
[426903278,1783001433000,-150.99,0.00020145,2]
[426903279,1783001433000,-4982.85,0.00020145,2]
[426903277,1783001433000,-4457.33,0.00020145,2]
[426903276,1783001433000,-6126.94997579,0.00020145,2]
[426903275,1783001433000,-805.54861126,0.00020145,2]
[426903295,1783001433000,-219.93,0.0002193,2]
[426903347,1783001437000,-47808.6811055,0.00021939,2]
[426903346,1783001437000,-500.0,0.00021527,2]
[426903348,1783001437000,-280.69973776,0.00021939,2]
[426903390,1783001438000,-206585.5785627,0.00023671,2]
[426903384,1783001438000,-160.0,0.00023158,2]
[426903379,1783001438000,-916.0,0.00023052,2]
[426903382,1783001438000,-889.0,0.00023133,2]
[426903383,1783001438000,-905.0,0.00023133,2]
[426903377,1783001438000,-517.16,0.00023024,2]
[426903387,1783001438000,-2906.63892173,0.00023333,2]
[426903380,1783001438000,-457.57,0.00023064,2]
[426903388,1783001438000,-188.53913514,0.00023516,7]
[426903393,1783001438000,-2256.91,0.00023852,2]
[426903381,1783001438000,-150.0,0.00023119,2]
[426903389,1783001438000,-2906.63892173,0.00023667,2]
[426903397,1783001438000,-911.0,0.00023928,2]
[426903391,1783001438000,-2558.99398546,0.0002377,2]
[426903398,1783001438000,-896.0,0.00023928,2]
[426903396,1783001438000,-914.0,0.00023928,2]
[426903394,1783001438000,-2478.11,0.00023914,2]
[426903395,1783001438000,-895.0,0.00023928,2]
[426903399,1783001438000,-155.0,0.00024,2]
[426903401,1783001438000,-224.0,0.00024,2]
[426903412,1783001438000,-3814.5769346,0.00024035,2]
[426903400,1783001438000,-181.0,0.00024,2]
[426903411,1783001438000,-906.0,0.00024026,2]
[426903404,1783001438000,-151.0,0.00024,2]
[426903385,1783001438000,-2256.91,0.00023297,2]
[426903402,1783001438000,-258.0,0.00024,2]
[426903392,1783001438000,-20107.8850089,0.00023828,2]
[426903386,1783001438000,-303.56,0.00023306,2]
[426903363,1783001438000,-1012.39,0.00022466,2]
[426903374,1783001438000,-912.0,0.00023003,2]
[426903403,1783001438000,-156.0,0.00024,2]
[426903349,1783001438000,-500.0,0.00022,2]
[426903351,1783001438000,-500.0,0.00022023,2]
[426903352,1783001438000,-1852.42,0.00022054,2]
[426903353,1783001438000,-209.44922207,0.0002215,2]
[426903350,1783001438000,-1136.06,0.00022,2]
[426903355,1783001438000,-200.0,0.00022188,2]
[426903364,1783001438000,-2256.91,0.00022742,2]
[426903354,1783001438000,-200.0,0.00022171,2]
[426903356,1783001438000,-2256.91,0.00022188,2]
[426903357,1783001438000,-5000.0,0.00022289,2]
[426903358,1783001438000,-150.0,0.00022289,2]
[426903359,1783001438000,-150.0,0.00022335,2]
[426903360,1783001438000,-3717.41,0.00022435,2]
[426903362,1783001438000,-276.32,0.00022466,2]
[426903361,1783001438000,-3186.08,0.00022438,2]
[426903365,1783001438000,-500.0,0.00022791,2]
[426903367,1783001438000,-2013.87121746,0.00022904,2]
[426903368,1783001438000,-2906.63892173,0.00023,2]
[426903369,1783001438000,-603.01,0.00023,2]
[426903370,1783001438000,-889.0,0.00023001,2]
[426903371,1783001438000,-897.0,0.00023001,2]
[426903373,1783001438000,-898.0,0.00023003,2]
[426903376,1783001438000,-900.0,0.00023021,2]
[426903375,1783001438000,-905.0,0.00023008,2]
[426903372,1783001438000,-884.0,0.00023001,2]
[426903366,1783001438000,-500.0,0.000229,2]
[426903378,1783001438000,-900.0,0.00023052,2]
[426903405,1783001438000,-2906.63892173,0.00024,2]
[426903423,1783001438000,-1071.55,0.00024174,2]
[426903407,1783001438000,-222.0,0.00024,2]
[426903454,1783001438000,-1000.0,0.00024658,2]
[426903466,1783001438000,-195.72171037,0.00024901,2]
[426903470,1783001438000,-152.19862015,0.00024911,2]
[426903458,1783001438000,-2906.63892173,0.00024667,2]
[426903468,1783001438000,-153.06965684,0.00024905,2]
[426903464,1783001438000,-177.3268337,0.00024901,2]
[426903461,1783001438000,-1379.28489416,0.00024731,2]
[426903463,1783001438000,-511.21232853,0.000249,2]
[426903472,1783001438000,-152.01526155,0.00024967,2]
[426903474,1783001438000,-163.0,0.00025,2]
[426903476,1783001438000,-153.0,0.00025,2]
[426903478,1783001438000,-43972.95,0.00025,2]
[426903482,1783001438000,-12562.99,0.00025,2]
[426903484,1783001438000,-181.0,0.00025,2]
[426903483,1783001438000,-155.0,0.00025,2]
[426903485,1783001438000,-224.0,0.00025,2]
[426903486,1783001438000,-258.0,0.00025,2]
[426903489,1783001438000,-2906.63892173,0.00025,2]
[426903487,1783001438000,-156.0,0.00025,2]
[426903488,1783001438000,-151.0,0.00025,2]
[426903490,1783001438000,-222.0,0.00025,2]
[426903491,1783001438000,-206.0,0.00025073,2]
[426903493,1783001438000,-20107.8850089,0.000252,2]
[426903494,1783001438000,-2906.63892173,0.00025333,2]
[426903492,1783001438000,-152.0,0.00025115,3]
[426903495,1783001438000,-302.042,0.00025386,2]
[426903409,1783001438000,-497.55776061,0.00024016,7]
[426903456,1783001438000,-169.7,0.00024658,2]
[426903450,1783001438000,-500.0,0.00024658,2]
[426903480,1783001438000,-18844.98,0.00025,2]
[426903448,1783001438000,-166.63,0.00024618,2]
[426903452,1783001438000,-501.451067,0.00024658,2]
[426903406,1783001438000,-150.0,0.00024,2]
[426903410,1783001438000,-673.2099,0.00024016,7]
[426903415,1783001438000,-599.2065818,0.00024036,2]
[426903413,1783001438000,-4412.6203549,0.00024035,2]
[426903416,1783001438000,-7567.1533551,0.00024036,2]
[426903419,1783001438000,-182.60383973,0.00024053,2]
[426903417,1783001438000,-13977.0470165,0.00024037,2]
[426903418,1783001438000,-2093.8525397,0.00024037,2]
[426903424,1783001438000,-665.69,0.00024174,2]
[426903414,1783001438000,-90358.1314029,0.00024035,2]
[426903420,1783001438000,-182.60383973,0.00024053,2]
[426903422,1783001438000,-902.0,0.00024171,2]
[426903421,1783001438000,-169.53,0.00024131,2]
[426903408,1783001438000,-332.60538264,0.00024016,7]
[426903425,1783001438000,-9592.17,0.00024174,2]
[426903447,1783001438000,-1000.0,0.00024596,2]
[426903428,1783001438000,-2906.63892173,0.00024333,2]
[426903432,1783001438000,-500.0,0.00024435,2]
[426903430,1783001438000,-2256.91,0.00024406,2]
[426903426,1783001438000,-2694.98202349,0.00024323,2]
[426903444,1783001438000,-215.01,0.00024525,7]
[426903440,1783001438000,-191.258687,0.000245,14]
[426903442,1783001438000,-20107.8850089,0.00024514,2]
[426903434,1783001438000,-220.83058827,0.00024478,30]
[426903436,1783001438000,-265.419946,0.000245,14]
[426903438,1783001438000,-164.276598,0.000245,14]
[426903538,1783001439000,-201.9560106,0.0002679,2]
[426903540,1783001439000,-538.63,0.00026798,2]
[426903539,1783001439000,-1000.0,0.00026798,2]
[426903541,1783001439000,-500.0,0.00026798,2]
[426903533,1783001439000,-185.0,0.00026521,2]
[426903536,1783001439000,-151.13538036,0.00026773,2]
[426903531,1783001439000,-268.85663972,0.00026397,2]
[426903529,1783001439000,-1958.29,0.00026176,2]
[426903532,1783001439000,-152.01526153,0.0002646,2]
[426903537,1783001439000,-500.0,0.00026773,2]
[426903523,1783001439000,-235.28777829,0.00026159,2]
[426903534,1783001439000,-20107.8850089,0.00026571,2]
[426903535,1783001439000,-180.34477182,0.00026658,2]
[426903544,1783001439000,-500.0,0.000269,9]
[426903543,1783001439000,-1017.76,0.000268,3]